fUST/lending_fUST_20260107
["ID","MTS","AMOUNT","RATE_DAILY","PERIOD"]
[400562716,1767720655961,-600.6566519,0.00033863,30]
[400562717,1767720655970,-600.6566519,0.00033863,30]
[400562718,1767720655979,-600.6566519,0.00033863,30]
[400562719,1767720655988,-600.6566519,0.00033863,30]
[400562720,1767720655997,-198.5755019,0.00033863,30]
[400562721,1767720656007,-190.8637568,0.00033863,30]
[400562722,1767720656016,-260.4277887,0.00033863,30]
[400562723,1767720656026,-1220.0048119,0.00033863,30]
[400562724,1767720656036,-153.0,0.00033863,30]
[400562725,1767720656047,-184.3704767,0.00033863,30]
[400562726,1767720656057,-183.06592027,0.000339,120]
[400562727,1767720656067,-273.72183838,0.000339,120]
[400562728,1767720656082,-162.45140046,0.000339,120]
[400562729,1767720656100,-163.4725449,0.000339,120]
[400562730,1767720656113,-198.36643638,0.000339,120]
[400562731,1767720656127,-1488.54574986,0.000339,120]
[400562732,1767720656142,-3648.82,0.000339,7]
[400562733,1767720656158,-300.0,0.000339,30]
[400562734,1767720656172,-2724.453066,0.000339,19]
[400562735,1767720656186,-800.0,0.00033944,2]
[400562736,1767720656203,-1350.0,0.00033973,5]
[400562737,1767720656216,-2000.0,0.00034,7]
[400562738,1767720656230,-1032.9531429,0.00034,2]
[400562739,1767720656243,-311.9987942,0.00034001,30]
[400562740,1767720656258,-800.0,0.00034078,2]
[400562741,1767720656272,-800.0,0.00034082,2]
[400562742,1767720656284,-800.0,0.000341,2]
[400562743,1767720656297,-376.8200359,0.00034132,30]
[400562744,1767720656310,-800.0,0.00034137,2]
[400562745,1767720656326,-800.0,0.00034158,2]
[400562746,1767720656343,-183.3,0.00034165,6]
[400562747,1767720656362,-2760.87,0.000342,30]
[400562748,1767720656381,-24466.81,0.000342,14]
[400562749,1767720656393,-800.0,0.000342,2]
[400562750,1767720656405,-614.19109545,0.0003421,2]
[400562751,1767720656420,-896.69,0.00034246,36]
[400562752,1767720656437,-800.0,0.00034246,2]
[400562753,1767720656452,-1825.86,0.00034246,120]
[400562754,1767720656466,-162.0,0.00034258,120]
[400562755,1767720656480,-376.8200359,0.00034274,30]
[400562756,1767720656493,-376.8200359,0.00034274,30]
[400562757,1767720656507,-376.8200359,0.00034274,30]
[400562758,1767720656520,-376.8200359,0.00034274,30]
[400562759,1767720656535,-376.8200359,0.00034274,30]
[400562760,1767720656547,-376.8200359,0.00034274,30]
[400562761,1767720656559,-376.8200359,0.00034274,30]
[400562762,1767720656572,-376.8200359,0.00034274,30]
[400562763,1767720656585,-376.8200359,0.00034274,30]
[400562764,1767720656600,-376.8200359,0.00034274,30]
[400562765,1767720656613,-376.8200359,0.00034274,30]
[400562766,1767720656625,-376.8200359,0.00034274,30]
[400562767,1767720656637,-376.8200359,0.00034274,30]
[400562768,1767720656650,-376.8200359,0.00034274,30]
[400562769,1767720656663,-376.8200359,0.00034274,30]
[400562770,1767720656676,-376.8200359,0.00034274,30]
[400562771,1767720656689,-376.8200359,0.00034274,30]
[400562772,1767720656701,-376.8200359,0.00034274,30]
[400562773,1767720656713,-376.8200359,0.00034274,30]
[400562774,1767720656726,-376.8200359,0.00034274,30]
[400562775,1767720656740,-3988.65402246,0.00034275,2]
[400562776,1767720656755,-159.0859127,0.00034301,30]
[400562777,1767720656769,-800.0,0.00034332,2]
[400562778,1767720656782,-1875.42598026,0.00034339,36]
[400562779,1767720656794,-1500.0,0.000344,19]
[400562780,1767720656806,-800.0,0.00034406,2]
[400562781,1767720656818,-800.0,0.00034449,2]
[400562782,1767720656830,-800.0,0.00034487,2]
[400562783,1767720656847,-655.31642,0.00034499,31]
[400562784,1767720656859,-151.0,0.00034499,31]
[400562785,1767720656871,-655.31642,0.00034499,31]
[400562786,1767720656884,-655.31642,0.00034499,31]
[400562787,1767720656895,-655.31642,0.00034499,31]
[400562788,1767720656907,-151.0,0.00034499,31]
[400562789,1767720656919,-151.0,0.00034499,31]
[400562790,1767720656931,-244.094588,0.00034499,31]
[400562791,1767720656943,-151.0,0.00034499,31]
[400562792,1767720656955,-213.83934,0.00034499,31]
[400562793,1767720656967,-194.712966,0.00034499,31]
[400562794,1767720656979,-194.712966,0.00034499,31]
[400562795,1767720656991,-194.712966,0.00034499,31]
[400562796,1767720657003,-194.712966,0.00034499,31]
[400562797,1767720657016,-305.51,0.000345,2]
[400562798,1767720657028,-600.0,0.000345,2]
[400562799,1767720657040,-800.0,0.00034514,2]
[400562800,1767720657052,-564.0,0.00034521,30]
[400562801,1767720657065,-270.0,0.00034521,5]
[400562802,1767720657077,-564.0,0.00034521,30]
[400562803,1767720657090,-278.71322358,0.00034521,5]
[400562804,1767720657102,-151.0,0.00034558,31]
[400562805,1767720657115,-151.0,0.00034558,31]
[400562806,1767720657127,-151.0,0.00034558,31]
[400562807,1767720657140,-151.0,0.00034558,31]
[400562808,1767720657154,-409.150764,0.00034558,31]
[400562809,1767720657166,-409.150764,0.00034558,31]
[400562810,1767720657179,-409.150764,0.00034558,31]
[400562811,1767720657191,-409.15076,0.00034558,31]
[400562812,1767720657204,-800.0,0.00034572,2]
[400562813,1767720657216,-152.80579,0.00034573,31]
[400562814,1767720657230,-251.543708,0.00034573,31]
[400562815,1767720657242,-251.543708,0.00034573,31]
[400562816,1767720657388,-251.543708,0.00034573,31]
[400562817,1767720657398,-251.543708,0.00034573,31]
[400562818,1767720657408,-151.0,0.00034573,31]
[400562819,1767720657418,-151.0,0.00034573,31]
[400562820,1767720657427,-173.03,0.00034573,60]
[400562821,1767720657437,-217.63,0.00034573,60]
[400562822,1767720657446,-1412.3,0.00034573,60]
[400562823,1767720657456,-153.811128,0.0003459,31]
[400562824,1767720657465,-151.0,0.0003459,31]
[400562825,1767720657474,-151.0,0.00034608,31]
[400562826,1767720657484,-886.28841444,0.0003465,4]
[400562827,1767720657494,-3545.15365776,0.0003465,4]
[400562828,1767720657505,-166.0,0.0003465,7]
[400562829,1767720657515,-166.0,0.0003465,7]
[400562830,1767720657524,-357.37586378,0.0003465,7]
[400562831,1767720657535,-166.0,0.0003465,7]
[400562832,1767720657544,-163.0,0.0003465,7]
[400562833,1767720657553,-152.0,0.0003465,7]
[400562834,1767720657563,-152.0,0.0003465,7]
[400562835,1767720657577,-163.0,0.0003465,7]
[400562836,1767720657587,-152.0,0.0003465,7]
[400562837,1767720657596,-185.22374852,0.0003465,7]
[400562838,1767720657607,-153.76138875,0.0003465,7]
[400562839,1767720657618,-7968.61913423,0.0003465,4]
[400562840,1767720657627,-711145.22750294,0.0003465,4]
[400562841,1767720657743,-466.6001153,0.0003465,4]
[400562842,1767720657756,-412.65811644,0.0003465,4]
[400562843,1767720657862,-239.7051727,0.00030136,14]
[400562844,1767720657872,-69536.59527735,0.0003465,4]
[400562845,1767720658043,-3e-08,0.0003465,4]
[400562846,1767720658123,-647.36917147,0.0003465,4]
[400562883,1767720830764,908.0,0.00030137,120]
[400562988,1767721611511,157.44,7.622e-05,2]
[400562989,1767721611818,177.12,7.895e-05,2]
[400562990,1767721612267,161.71381105,8.167e-05,2]
[400563072,1767721831844,-3720.8147366,0.00010764,2]
[400563074,1767721831853,-166.66666666,0.00011438,2]
[400563076,1767721831863,-239.22235646,0.00011463,2]
[400563078,1767721831874,-300.0,0.00011568,2]
[400563080,1767721831885,-300.0,0.00011568,2]
[400563082,1767721831894,-1200.0,0.00011568,2]
[400563084,1767721831906,-43295.0194864,0.00011569,2]
[400563086,1767721831915,-50000.0,0.00011799,2]
[400563088,1767721831924,-300.0,0.00011799,2]
[400563090,1767721831933,-300.0,0.00011799,2]
[400563092,1767721831943,-300.0,0.00011799,2]
[400563094,1767721831952,-300.0,0.00011799,2]
[400563096,1767721831961,-300.0,0.00011799,2]
[400563098,1767721831971,-300.0,0.00011799,2]
[400563100,1767721831980,-300.0,0.00011799,2]
[400563102,1767721831990,-300.0,0.00011799,2]
[400563104,1767721831999,-300.0,0.00011799,2]
[400563106,1767721832009,-300.0,0.00011799,2]
[400563108,1767721832018,-300.0,0.00011799,2]
[400563110,1767721832027,-300.0,0.00011799,2]
[400563112,1767721832036,-300.0,0.00011799,2]
[400563114,1767721832045,-300.0,0.00011799,2]
[400563116,1767721832055,-300.0,0.00011799,2]
[400563117,1767721832064,-999.0,0.00011887,2]
[400563120,1767721832073,-600.0,0.00012034,2]
[400563122,1767721832082,-870.18798057,0.0001218,2]
[400563123,1767721832091,-500.0,0.00012556,2]
[400563125,1767721832100,-300.0,0.00012557,2]
[400563127,1767721832109,-592.01994136,0.00012558,2]
[400563130,1767721832120,-1420.2,0.00012558,2]
[400563213,1767721837773,-1526.84513575,0.00012558,2]
[400563220,1767721837828,-368.2,0.00012558,2]
[400563223,1767721837841,-596.42230822,0.00012558,2]
[400563225,1767721837855,-354.37501678,0.00012558,2]
[400563227,1767721837866,-906.77003365,0.00012558,2]
[400563229,1767721837882,-2862.1822203,0.00012558,2]
[400563232,1767721837897,-1908.75171476,0.00012558,2]
[400563234,1767721837908,-644.23362918,0.00012558,2]
[400563236,1767721837919,-500.0,0.00012693,2]
[400563239,1767721837929,-500.0,0.00012694,2]
[400563241,1767721837938,-500.0,0.00012694,2]
[400563242,1767721837948,-500.0,0.00012694,2]
[400563243,1767721837957,-500.0,0.00012694,2]
[400563244,1767721838117,-250.44659614,0.00012694,2]
[400563245,1767721838128,-500.0,0.00012694,2]
[400563246,1767721838140,-500.0,0.00012694,2]
[400563247,1767721838150,-500.0,0.00012694,2]
[400563248,1767721838161,-500.0,0.00012694,2]
[400563249,1767721838172,-172.79317984,0.00012694,2]
[400563250,1767721838182,-211.14739907,0.00012694,2]
[400563251,1767721838192,-530.0,0.00012694,2]
[400563252,1767721838203,-455.89827375,0.00012694,2]
[400563253,1767721838214,-11180.0,0.00012695,2]
[400563254,1767721838224,-420.0,0.00012705,2]
[400563255,1767721838234,-570.45688455,0.0001273,2]
[400563256,1767721838244,-500.0,0.0001273,2]
[400563257,1767721838254,-1206.05235996,0.0001273,2]
[400563258,1767721838264,-1206.05235996,0.0001273,2]
[400563259,1767721838273,-500.0,0.0001273,2]
[400563260,1767721838284,-500.0,0.0001273,2]
[400563261,1767721838294,-1206.05235996,0.0001273,2]
[400563262,1767721838304,-1206.05235996,0.0001273,2]
[400563263,1767721838314,-1206.05235996,0.0001273,2]
[400563264,1767721838323,-500.0,0.0001273,2]
[400563265,1767721838333,-1206.05235996,0.0001273,2]
[400563266,1767721838343,-1206.05235996,0.0001273,2]
[400563267,1767721838354,-318.42871843,0.0001273,2]
[400563268,1767721838364,-1206.05235996,0.0001273,2]
[400563269,1767721838374,-1206.05235996,0.0001273,2]
[400563270,1767721838384,-1206.05235996,0.0001273,2]
[400563271,1767721838396,-1206.05235996,0.0001273,2]
[400563272,1767721838407,-1206.05235996,0.0001273,2]
[400563273,1767721838417,-500.0,0.0001273,2]
[400563274,1767721838427,-1206.05235996,0.0001273,2]
[400563275,1767721838437,-1206.05235996,0.0001273,2]
[400563276,1767721838447,-1206.05235996,0.0001273,2]
[400563277,1767721838456,-1206.05235996,0.0001273,2]
[400563278,1767721838466,-1206.05235996,0.0001273,2]
[400563279,1767721838475,-1206.05235996,0.0001273,2]
[400563280,1767721838485,-1286.45585063,0.0001273,2]
[400563281,1767721838494,-1286.45585063,0.0001273,2]
[400563282,1767721838504,-1286.45585063,0.0001273,2]
[400563283,1767721838514,-1286.45585063,0.0001273,2]
[400563284,1767721838523,-1286.45585063,0.0001273,2]
[400563285,1767721838532,-1286.45585063,0.0001273,2]
[400563286,1767721838542,-1286.45585063,0.0001273,2]
[400563287,1767721838551,-1286.45585063,0.0001273,2]
[400563288,1767721838560,-1286.45585063,0.0001273,2]
[400563289,1767721838569,-1000000.0,0.00012731,2]
[400563290,1767721838578,-500.0,0.0001283,2]
[400563291,1767721838587,-11180.0,0.00012832,2]
[400563292,1767721838596,-269.00000001,0.00012832,2]
[400563293,1767721838606,-278.727,0.00012832,2]
[400563294,1767721838616,-1827.81995577,0.00012899,2]
[400563295,1767721838626,-10115.60945094,0.000129,2]
[400563296,1767721838635,-500.0,0.00012967,2]
[400563297,1767721838647,-155.4754909,0.00012967,2]
[400563298,1767721838656,-11180.0,0.00012969,2]
[400563299,1767721838666,-500.0,0.00013104,2]
[400563300,1767721838675,-11180.0,0.00013106,2]
[400563301,1767721838685,-720.0,0.00013237,2]
[400563302,1767721838695,-500.0,0.00013241,2]
[400563303,1767721838705,-11180.0,0.00013243,2]
[400563304,1767721838714,-500.0,0.00013273,2]
[400563305,1767721838724,-500.0,0.00013273,2]
[400563306,1767721838733,-500.0,0.00013273,2]
[400563307,1767721838744,-500.0,0.00013273,2]
[400563308,1767721838754,-500.0,0.00013273,2]
[400563309,1767721838764,-500.0,0.00013273,2]
[400563310,1767721838774,-161.85370912,0.00013273,2]
[400563311,1767721838784,-500.0,0.00013273,2]
[400563312,1767721838793,-500.0,0.00013273,2]
[400563313,1767721838803,-500.0,0.00013273,2]
[400563314,1767721838812,-283.37004819,0.00013273,2]
[400563315,1767721838822,-165.53460267,0.00013273,2]
[400563316,1767721838834,-500.0,0.00013273,2]
[400563317,1767721838853,-500.0,0.00013273,2]
[400563318,1767721838865,-500.0,0.00013273,2]
[400563319,1767721838878,-500.0,0.00013273,2]
[400563320,1767721838888,-500.0,0.00013273,2]
[400563321,1767721838898,-500.0,0.00013273,2]
[400563322,1767721838908,-500.0,0.00013273,2]
[400563323,1767721838920,-500.0,0.00013273,2]
[400563324,1767721838930,-500.0,0.00013273,2]
[400563325,1767721838940,-500.75815525,0.00013273,2]
[400563326,1767721838950,-500.0,0.00013273,2]
[400563327,1767721838962,-500.0,0.00013273,2]
[400563328,1767721838972,-500.0,0.00013273,2]
[400563329,1767721838982,-500.0,0.00013273,2]
[400563330,1767721838992,-500.0,0.00013273,2]
[400563331,1767721839003,-465.83435132,0.00013273,2]
[400563332,1767721839012,-500.93094912,0.00013273,2]
[400563333,1767721839022,-606.03605592,0.00013273,2]
[400563334,1767721839032,-500.0,0.00013273,2]
[400563335,1767721839042,-500.0,0.00013273,2]
[400563336,1767721839052,-500.0,0.00013273,2]
[400563337,1767721839063,-500.0,0.00013273,2]
[400563338,1767721839073,-500.0,0.00013273,2]
[400563339,1767721839082,-500.0,0.00013273,2]
[400563340,1767721839093,-167.48106999,0.00013273,2]
[400563341,1767721839104,-500.0,0.00013273,2]
[400563342,1767721839116,-500.45942406,0.00013273,2]
[400563343,1767721839127,-500.0,0.00013273,2]
[400563344,1767721839141,-268.70604187,0.00013273,2]
[400563345,1767721839153,-500.0,0.00013273,2]
[400563346,1767721839164,-171.59960392,0.00013273,2]
[400563347,1767721839176,-185.45250914,0.00013273,2]
[400563348,1767721839186,-500.0,0.00013273,2]
[400563349,1767721839198,-210.68917911,0.00013273,2]
[400563350,1767721839208,-500.0,0.00013273,2]
[400563351,1767721839218,-500.0,0.00013273,2]
[400563352,1767721839231,-500.0,0.00013273,2]
[400563353,1767721839242,-500.89572759,0.00013273,2]
[400563355,1767721839254,-500.0,0.00013273,2]
[400563356,1767721839265,-500.0,0.00013273,2]
[400563357,1767721839275,-435.85146514,0.00013273,2]
[400563358,1767721839286,-500.0,0.00013273,2]
[400563359,1767721839295,-500.0,0.00013273,2]
[400563360,1767721839305,-500.0,0.00013273,2]
[400563361,1767721839317,-568.51559551,0.00013273,2]
[400563362,1767721839327,-500.39596396,0.00013273,2]
[400563363,1767721839337,-159.32617446,0.00013273,2]
[400563364,1767721839347,-500.0,0.00013273,2]
[400563365,1767721839357,-500.0,0.00013273,2]
[400563366,1767721839367,-536.41268697,0.00013273,2]
[400563367,1767721839376,-500.0,0.00013273,2]
[400563368,1767721839386,-500.0,0.00013273,2]
[400563369,1767721839400,-500.0,0.00013273,2]
[400563370,1767721839410,-500.49523279,0.00013273,2]
[400563371,1767721839420,-500.0,0.00013273,2]
[400563372,1767721839431,-500.0,0.00013273,2]
[400563373,1767721839441,-500.0,0.00013273,2]
[400563374,1767721839451,-232.41734948,0.00013273,2]
[400563375,1767721839462,-292.0,0.00013378,2]
[400563376,1767721839472,-1827.81995577,0.00013378,2]
[400563377,1767721839483,-11180.0,0.0001338,2]
[400563378,1767721839494,-282.28238062,0.00013463,2]
[400563379,1767721839505,-11180.0,0.00013517,2]
[400563380,1767721839514,-11180.0,0.00013654,2]
[400563381,1767721839524,-300.0,0.00013673,2]
[400563382,1767721839535,-500.0,0.00013698,2]
[400563383,1767721839544,-500.0,0.00013698,2]
[400563384,1767721839554,-500.0,0.00013698,2]
[400563385,1767721839563,-500.0,0.00013698,2]
[400563386,1767721839573,-500.0,0.00013698,2]
[400563387,1767721839582,-500.0,0.00013698,2]
[400563388,1767721839591,-500.0,0.00013698,2]
[400563389,1767721839600,-577.08,0.00013698,2]
[400563390,1767721839610,-500.0,0.00013698,2]
[400563391,1767721839619,-500.0,0.00013698,2]
[400563392,1767721839628,-361.95914229,0.00013698,2]
[400563393,1767721839638,-466.89772029,0.00013698,2]
[400563394,1767721839648,-885.4942762,0.00013699,2]
[400563395,1767721839657,-500.0,0.00013699,2]
[400563396,1767721839667,-500.0,0.00013699,2]
[400563397,1767721839676,-500.71714379,0.00013699,2]
[400563398,1767721839685,-504.37236451,0.00013699,2]
[400563399,1767721839694,-500.0,0.00013699,2]
[400563400,1767721839703,-501.56829016,0.00013699,2]
[400563401,1767721839713,-500.68695717,0.00013699,2]
[400563402,1767721839722,-500.84600982,0.00013699,2]
[400563403,1767721839732,-500.74532212,0.00013699,2]
[400563404,1767721839741,-500.0,0.00013699,2]
[400563405,1767721839751,-500.0,0.00013699,2]
[400563406,1767721839761,-526.06901587,0.00013699,2]
[400563407,1767721839771,-500.0,0.00013699,2]
[400563408,1767721839780,-500.2666594,0.00013699,2]
[400563409,1767721839790,-500.0,0.00013699,2]
[400563410,1767721839800,-500.93963039,0.00013699,2]
[400563411,1767721839809,-501.17135178,0.00013699,2]
[400563412,1767721839818,-500.68900305,0.00013699,2]
[400563413,1767721839828,-500.61401424,0.00013699,2]
[400563414,1767721839838,-500.0,0.00013699,2]
[400563415,1767721839852,-580.83767681,0.00013699,2]
[400563416,1767721839861,-500.7233053,0.00013699,2]
[400563417,1767721839872,-501.00450759,0.00013699,2]
[400563418,1767721839882,-500.0,0.00013699,2]
[400563419,1767721839893,-500.0,0.00013699,2]
[400563420,1767721839903,-254.27500282,0.00013699,2]
[400563421,1767721839913,-500.76143899,0.00013699,2]
[400563422,1767721839925,-540.98419624,0.00013699,2]
[400563423,1767721839935,-634.09365022,0.00013699,2]
[400563424,1767721839944,-502.04480355,0.00013699,2]
[400563425,1767721839953,-500.0,0.00013699,2]
[400563426,1767721839963,-500.0,0.00013699,2]
[400563427,1767721839972,-500.0,0.00013699,2]
[400563428,1767721839982,-343.49392703,0.00013699,2]
[400563429,1767721839991,-351.22077635,0.00013699,2]
[400563430,1767721840000,-11180.0,0.00013791,2]
[400563431,1767721840010,-1000.0,0.00013821,2]
[400563432,1767721840019,-451.84390246,0.00013821,2]
[400563433,1767721840029,-500.0,0.00013821,2]
[400563434,1767721840038,-500.0,0.00013821,2]
[400563435,1767721840048,-559.30954112,0.00013821,2]
[400563436,1767721840058,-564.7839534,0.00013821,2]
[400563437,1767721840067,-500.0,0.00013821,2]
[400563438,1767721840076,-500.0,0.00013821,2]
[400563439,1767721840086,-500.0,0.00013821,2]
[400563440,1767721840095,-500.0,0.00013821,2]
[400563441,1767721840105,-500.0,0.00013821,2]
[400563442,1767721840113,-1000.0,0.00013821,2]
[400563443,1767721840122,-500.0,0.00013821,2]
[400563444,1767721840132,-500.66277805,0.00013821,2]
[400563446,1767721840143,-500.66535863,0.00013821,2]
[400563448,1767721840153,-500.0,0.00013821,2]
[400563449,1767721840162,-500.0,0.00013821,2]
[400563451,1767721840172,-500.0,0.00013821,2]
[400563453,1767721840181,-500.0,0.00013821,2]
[400563455,1767721840191,-1002.10613281,0.00013821,2]
[400563456,1767721840200,-1000.0,0.00013821,2]
[400563457,1767721840210,-500.0,0.00013821,2]
[400563458,1767721840220,-588.2860466,0.00013821,2]
[400563460,1767721840230,-603.20077108,0.00013821,2]
[400563462,1767721840240,-555.85922892,0.00013821,2]
[400563464,1767721840249,-500.0,0.00013821,2]
[400563465,1767721840258,-500.0,0.00013821,2]
[400563466,1767721840268,-500.0,0.00013821,2]
[400563468,1767721840277,-500.0,0.00013821,2]
[400563470,1767721840286,-494.63820199,0.00013821,2]
[400563471,1767721840296,-500.0,0.00013821,2]
[400563473,1767721840305,-500.0,0.00013821,2]
[400563475,1767721840315,-1000.0,0.00013821,2]
[400563477,1767721840325,-198.64498703,0.00013821,2]
[400563478,1767721840335,-1000.0,0.00013821,2]
[400563479,1767721840344,-1827.81995577,0.00013858,2]
[400563480,1767721840355,-7838.77162275,0.0001386,2]
[400563481,1767721840364,-11180.0,0.00013928,2]
[400563483,1767721840374,-587.0,0.00013953,2]
[400563485,1767721840383,-11180.0,0.00014065,2]
[400563487,1767721840394,-176.63115395,0.00014175,2]
[400563489,1767721840405,-225.32427822,0.00014175,2]
[400563491,1767721840415,-11180.0,0.00014202,2]
[400563492,1767721840424,-600.0,0.00014221,2]
[400563494,1767721840435,-1001.57471188,0.00014247,2]
[400563496,1767721840445,-639.63755637,0.00014247,2]
[400563497,1767721840455,-443.89072638,0.00014247,2]
[400563499,1767721840465,-500.0,0.00014247,2]
[400563501,1767721840475,-1000.0,0.00014247,2]
[400563502,1767721840485,-501.0386878,0.00014247,2]
[400563503,1767721840495,-500.84667986,0.00014247,2]
[400563504,1767721840505,-1000.0,0.00014247,2]
[400563505,1767721840515,-1000.0,0.00014247,2]
[400563506,1767721840525,-500.54517436,0.00014247,2]
[400563507,1767721840535,-1000.0,0.00014247,2]
[400563508,1767721840545,-500.81877837,0.00014247,2]
[400563509,1767721840554,-1827.81995577,0.00014337,2]
[400563510,1767721840564,-11180.0,0.00014339,2]
[400563511,1767721840573,-502.25371869,0.00014368,2]
[400563512,1767721840583,-1500.0,0.00014368,2]
[400563513,1767721840592,-1500.0,0.00014368,2]
[400563514,1767721840602,-1500.0,0.00014368,2]
[400563515,1767721840611,-288.37953516,0.00014427,2]
[400563516,1767721840621,-11180.0,0.00014476,2]
[400563517,1767721840631,-864.0,0.00014561,2]
[400563518,1767721840645,-500.0,0.00014585,2]
[400563519,1767721840654,-500.0,0.00014585,2]
[400563520,1767721840664,-500.0,0.00014585,2]
[400563521,1767721840674,-500.0,0.00014585,2]
[400563522,1767721840684,-500.0,0.00014585,2]
[400563523,1767721840693,-500.0,0.00014585,2]
[400563524,1767721840702,-500.0,0.00014585,2]
[400563525,1767721840713,-500.0,0.00014585,2]
[400563526,1767721840723,-500.0,0.00014585,2]
[400563527,1767721840733,-500.0,0.00014585,2]
[400563528,1767721840743,-500.0,0.00014585,2]
[400563529,1767721840753,-500.0,0.00014585,2]
[400563530,1767721840762,-500.0,0.00014585,2]
[400563531,1767721840772,-500.0,0.00014585,2]
[400563532,1767721840782,-500.0,0.00014585,2]
[400563533,1767721840792,-500.0,0.00014585,2]
[400563534,1767721840801,-511.14869574,0.00014585,2]
[400563535,1767721840936,-11180.0,0.00014613,2]
[400563536,1767721840945,-11180.0,0.0001475,2]
[400563537,1767721840954,-900.0,0.00014768,2]
[400563538,1767721840964,-272.8580354,0.00014784,2]
[400563539,1767721840975,-692.18736728,0.00014795,2]
[400563540,1767721840984,-1500.0,0.00014795,2]
[400563541,1767721840994,-1500.0,0.00014795,2]
[400563542,1767721841003,-533.7772006,0.00014795,2]
[400563543,1767721841012,-1827.81995577,0.00014816,2]
[400563544,1767721841022,-100000.0,0.00014882,2]
[400563545,1767721841031,-11180.0,0.00014887,2]
[400563546,1767721841041,-1041.38457236,0.00014916,2]
[400563547,1767721841050,-1887.16845353,0.00014916,2]
[400563548,1767721841059,-2000.0,0.00014916,2]
[400563549,1767721841069,-1000.0,0.00015,2]
[400563550,1767721841079,-11180.0,0.00015024,2]
[400563551,1767721841088,-11180.0,0.00015161,2]
[400563552,1767721841097,-11180.0,0.00015298,2]
[400563553,1767721841106,-589.37550664,0.00015316,2]
[400563554,1767721841116,-823.0,0.00015324,2]
[400563555,1767721841125,-2000.0,0.00015342,2]
[400563556,1767721841134,-1006.10461326,0.00015342,2]
[400563557,1767721841144,-11180.0,0.00015435,2]
[400563558,1767721841155,-325.34240478,0.00015463,2]
[400563559,1767721841164,-556.89714871,0.00015464,2]
[400563560,1767721841173,-1041.66666667,0.00015466,2]
[400563561,1767721841182,-11180.0,0.00015572,2]
[400563562,1767721841192,-11197.51444523,0.00015709,2]
[400563563,1767721841201,-2500.0,0.0001589,2]
[400563564,1767721841210,-363.04923167,0.00015909,4]
[400563565,1767721841220,-7838.0,0.00015939,2]
[400563566,1767721841229,-1000.0,0.00016017,2]
[400563567,1767721841238,-10115.60945091,0.00016246,2]
[400563568,1767721841248,-3000.0,0.00016438,2]
[400563569,1767721841258,-183.3,0.0001648,2]
[400563570,1767721841268,-475.0,0.00016824,2]
[400563571,1767721841278,-475.0,0.00016824,2]
[400563572,1767721841288,-475.0,0.00016824,2]
[400563573,1767721841297,-475.0,0.00016824,2]
[400563574,1767721841307,-475.0,0.00016824,2]
[400563575,1767721841316,-475.0,0.00016824,2]
[400563576,1767721841326,-475.0,0.00016824,2]
[400563577,1767721841336,-475.0,0.00016824,2]
[400563578,1767721841345,-475.0,0.00016824,2]
[400563579,1767721841354,-601.0,0.0001683,2]
[400563580,1767721841363,-1418.71659724,0.00016986,2]
[400563581,1767721841372,-447.74535285,0.00017391,6]
[400563582,1767721841382,-368.40242894,0.00017463,2]
[400563583,1767721841394,-1000.0,0.00017619,2]
[400563584,1767721841403,-244.0,0.00017619,2]
[400563585,1767721841413,-183.3,0.00018249,2]
[400563586,1767721841423,-541.39643076,0.00018874,9]
[400563587,1767721841432,-900.0,0.00019178,2]
[400563588,1767721841442,-268.84,0.000192,2]